bitfinex-derivatives/quotes_ETHF0:USTF0_20240822
["timestamp","ask_amount","ask_price","bid_price","bid_amount"]
[1724348326463,3.50088626,2610.3,2610.2,0.38665079]
[1724348328958,3.88386626,2610.3,2610.2,0.00365079]
[1724348329354,8.90296569,2610.3,2610.2,0.00365079]
[1724348329558,8.90296569,2610.3,2609.6,4.27745164]
[1724348329559,0.38304,2610.0,2609.9,0.38303]
[1724348329751,3.2078,2610.0,2609.9,0.38303]
[1724348330057,6.70599357,2610.0,2609.9,0.38303]
[1724348330256,7.44132357,2610.0,2609.9,0.38303]
[1724348330655,7.44132357,2610.0,2609.9,0.38746206]
[1724348331159,7.05829357,2610.0,2609.9,0.38746206]
[1724348331571,7.41599357,2610.0,2609.9,0.38746206]
[1724348332264,3.85049357,2610.0,2609.9,0.38746206]
[1724348335271,3.49819357,2610.0,2609.9,1.34507206]
[1724348335457,3.49819357,2610.0,2609.9,0.38746206]
[1724348336568,3.49819357,2610.0,2609.9,0.00443206]
[1724348336768,6.70599357,2610.0,2609.9,0.38747206]
[1724348336970,3.49819357,2610.0,2609.9,0.38747206]
[1724348338471,6.70599357,2610.0,2609.9,0.38747206]
[1724348338971,3.49819357,2610.0,2609.9,0.38747206]
[1724348348270,3.88122357,2610.0,2609.9,0.00443206]
[1724348348874,3.49819357,2610.0,2609.9,0.38747206]
[1724348350669,3.49819357,2610.0,2609.9,1.34508206]
[1724348350984,3.49819357,2610.0,2609.9,0.38747206]
[1724348351167,3.49819357,2610.0,2609.9,1.34508206]
[1724348352169,0.00269269,2610.3,2610.2,0.383]
[1724348352574,3.88386626,2610.3,2610.2,0.383]
[1724348353584,3.50088626,2610.3,2609.9,0.00443206]
[1724348353773,7.08902357,2610.0,2609.9,0.38746206]
[1724348354083,7.08902357,2610.0,2609.9,0.00443206]
[1724348356591,6.70599357,2610.0,2609.9,0.38747206]
[1724348356987,7.43669357,2610.0,2609.9,0.38747206]
[1724348358880,3.85699357,2610.0,2609.9,0.38747206]
[1724348359186,3.49819357,2610.0,2609.9,0.38747206]
[1724348359375,3.21049269,2610.3,2610.0,0.95757]
[1724348359690,3.49819357,2610.1,2610.0,1.716]
[1724348360090,3.21049269,2610.3,2610.2,0.383]
[1724348360490,6.70868626,2610.3,2610.2,0.383]
[1724348361691,7.06558626,2610.3,2610.2,0.383]
[1724348362391,7.44857626,2610.3,2610.1,0.383]
[1724348362588,3.49819357,2610.2,2610.1,0.383]
[1724348364184,0.00269269,2610.3,2610.2,0.383]
[1724348364492,0.38429269,2610.3,2610.2,0.383]
[1724348364790,3.88248626,2610.3,2610.2,0.383]
[1724348366083,7.09028626,2610.3,2610.2,0.383]
[1724348366390,7.47326626,2610.3,2610.1,0.383]
[1724348366588,3.88119357,2610.2,2610.0,0.38303]
[1724348366792,3.49819357,2610.1,2610.0,0.38303]
[1724348371495,3.49819357,2610.1,2610.0,1.3406]
[1724348373595,3.49819357,2610.1,2610.0,0.38303]
[1724348373790,3.49819357,2610.1,2610.0,1.34115088]
[1724348373985,3.49819357,2610.1,2610.0,0.86209044]
[1724348377491,3.49819357,2610.1,2610.0,1.81966044]
[1724348378194,3.49819357,2610.1,2610.0,0.86209044]
[1724348379498,3.49819357,2610.1,2610.0,0.38303]
[1724348382498,3.49819357,2610.1,2610.0,1.76303]
[1724348385200,0.38429269,2610.3,2610.2,1.3405]
[1724348385201,0.00269269,2610.3,2610.2,1.3405]
[1724348385401,0.00269269,2610.3,2610.2,3.678]
[1724348385898,0.00269269,2610.3,2610.2,4.15700266]
[1724348386199,0.00269269,2610.3,2610.2,3.678]
[1724348386388,0.00269269,2610.3,2610.2,5.609]
[1724348386693,0.00269269,2610.3,2610.2,3.694]
[1724348386896,1.09389269,2610.3,2610.2,3.694]
[1724348387092,1.09389269,2610.3,2610.2,0.383]
[1724348387490,4.59208626,2610.3,2610.2,0.383]
[1724348391994,4.97506626,2610.3,2609.9,0.00443206]
[1724348392195,3.49819357,2610.0,2609.9,0.38747206]
[1724348394696,3.49819357,2610.0,2609.9,1.34508206]
[1724348397508,3.49819357,2610.0,2609.9,0.38747206]
[1724348397895,3.49819357,2610.0,2609.9,1.34508206]
[1724348401604,3.49819357,2610.0,2609.9,1.82417569]
[1724348401994,3.49819357,2610.0,2609.9,1.34508206]
[1724348402191,3.49819357,2610.0,2609.9,1.82416591]
[1724348402704,3.49819357,2610.0,2609.9,2.78177591]
[1724348402913,3.49819357,2610.0,2609.9,6.09277591]
[1724348403605,3.49819357,2610.0,2609.9,6.8592702]
[1724348403804,3.49819357,2610.0,2609.9,6.09277591]
[1724348404310,3.49819357,2610.0,2609.9,6.85927602]
[1724348405599,3.49819357,2610.0,2609.9,6.09277591]
[1724348405798,3.49819357,2610.0,2609.9,0.86655591]
[1724348406400,3.49819357,2610.0,2609.9,0.00443206]
[1724348409401,3.49819357,2610.0,2609.9,0.38747206]
[1724348409597,3.49819357,2610.0,2609.9,0.00443206]
[1724348410306,3.49819357,2610.0,2609.9,0.38747206]
[1724348414496,3.49819357,2610.0,2609.9,1.76747206]
[1724348418410,3.2078,2610.1,2610.0,0.38302]
[1724348418816,6.70599357,2610.1,2610.0,0.38302]
[1724348420115,7.08900357,2610.1,2610.0,0.38302]
[1724348420305,6.70599357,2610.1,2610.0,0.38302]
[1724348421316,7.08900357,2610.1,2610.0,0.38302]
[1724348422405,0.38302,2610.0,2609.9,0.38746206]
[1724348422712,5.24111354,2610.0,2609.0,1.00394131]
[1724348422907,3.10930193,2609.0,2608.9,1.34116]
[1724348423107,3.10930193,2609.0,2608.9,4.68307131]
[1724348423315,3.10930193,2609.0,2608.9,4.05293]
[1724348423611,3.10930193,2609.0,2608.9,4.05570084]
[1724348424018,0.3639,2609.3,2609.2,0.38314]
[1724348424315,0.3639,2609.3,2609.2,2.721]
[1724348424616,3.5929,2609.8,2609.7,0.38307]
[1724348424810,6.70220193,2609.8,2609.7,1.76307]
[1724348425716,7.08680193,2609.8,2609.7,1.76307]
[1724348429008,3.10930193,2609.8,2609.7,2.72075]
[1724348430005,3.10930193,2609.8,2609.7,3.08065]
[1724348431014,0.60529194,2609.8,2609.7,5.9537]
[1724348431213,3.2078,2610.7,2610.4,0.38297]
[1724348431414,0.3595,2610.6,2610.4,0.38297]
[1724348431615,0.3595,2610.6,2610.4,32.21337]
[1724348432319,0.00879089,2610.5,2610.4,32.21337]
[1724348432614,0.7093,2610.9,2610.8,0.38291]
[1724348432808,0.7093,2610.9,2610.8,1.76291]
[1724348433010,1.4622422,2610.9,2610.8,1.76291]
[1724348433514,1.46518829,2610.9,2610.8,1.76660074]
[1724348434404,1.46518829,2610.9,2610.8,3.69660074]
[1724348434808,1.82588829,2610.9,2610.8,3.69660074]
[1724348435215,1.82588829,2610.9,2610.8,7.52700074]
[1724348435216,0.50499635,2610.9,2610.8,7.52700074]
[1724348435434,0.5049962,2610.9,2610.8,7.52700074]
[1724348435608,0.96263803,2610.9,2610.8,3.69660074]
[1724348435815,1.11028521,2610.9,2610.8,0.00369074]
[1724348436015,1.11028521,2610.9,2610.8,0.38660074]
[1724348436721,1.11028521,2610.9,2610.8,0.00369074]
[1724348436915,1.11028521,2610.9,2610.8,0.38660074]
[1724348437123,1.11028521,2610.9,2610.8,0.00369074]
[1724348437316,1.11028521,2610.9,2610.8,0.38660074]
[1724348437712,1.11028521,2610.9,2610.8,0.00369074]
[1724348438019,6.11028521,2610.9,2610.2,6.52355164]
[1724348438217,0.00294609,2610.9,2610.8,4.65019]
[1724348438514,0.00575164,2611.1,2610.8,4.65019]
[1724348438515,0.00575164,2611.1,2611.0,1.34008]
[1724348438723,0.75864621,2611.1,2611.0,1.34008]
[1724348439312,0.75864621,2611.1,2611.0,0.38288]
[1724348439613,0.76254095,2611.1,2611.0,0.3863715]
[1724348443115,0.76254095,2611.1,2611.0,0.0034915]
[1724348443324,3.97034095,2611.1,2611.0,0.0034915]
[1724348444419,3.97034095,2611.1,2611.0,0.3863715]
[1724348444820,3.97034095,2611.1,2611.0,0.0034915]
[1724348445015,3.97034095,2611.1,2611.0,0.3863715]
[1724348445222,3.82273832,2611.1,2611.0,0.3863715]
[1724348447728,3.82273832,2611.1,2611.0,0.3863715]
[1724348449823,0.38289,2611.0,2610.5,3.31]
[1724348450023,0.41159373,2611.1,2610.9,0.38289]
[1724348450226,0.60529194,2610.6,2610.5,4.65034]
[1724348450831,0.60529194,2610.6,2610.5,4.65383827]
[1724348451532,0.3532,2610.9,2610.8,0.38291]
[1724348451935,0.95849194,2610.9,2610.8,0.38291]
[1724348452830,0.95849194,2610.9,2610.5,3.31349827]
[1724348453033,0.60529194,2610.6,2610.5,3.69644827]
[1724348453442,0.98989194,2610.6,2610.5,0.38644827]
[1724348454731,0.98989194,2610.6,2610.5,1.34383827]
[1724348454928,0.98989194,2610.6,2610.5,4.65383827]
[1724348456738,0.98989194,2610.6,2610.5,5.61122827]
[1724348457634,0.98989194,2610.6,2610.5,4.65383827]
[1724348460033,0.98989194,2610.6,2610.5,3.69644827]
[1724348460235,4.19769194,2610.6,2610.5,3.69644827]
[1724348461235,0.98989194,2610.6,2610.5,3.69644827]
[1724348462035,0.60529194,2610.6,2610.5,4.65383827]
[1724348462532,0.60529194,2610.6,2610.5,2.72283827]
[1724348463247,0.3472,2610.8,2610.7,1.34025]
[1724348463538,0.3472,2610.8,2610.7,2.71925]
[1724348464531,0.3472,2610.8,2610.7,4.65025]
[1724348466246,0.3472,2610.8,2610.7,3.69293]
[1724348467548,0.38254638,2611.1,2611.0,0.38288]
[1724348468854,4.57674638,2611.1,2610.9,0.38289]
[1724348469046,0.74714638,2611.1,2610.9,0.38289]
[1724348469248,0.74714638,2611.1,2611.0,0.38288]
[1724348470254,0.37424638,2611.1,2611.0,0.38288]
[1724348470447,0.74674638,2611.1,2611.0,0.38288]
[1724348471461,0.00964638,2611.1,2611.0,7.52248]
[1724348471658,0.00964638,2611.1,2611.0,8.47969]
[1724348473061,0.00964638,2611.1,2611.0,3.69288]
[1724348473958,0.00964638,2611.1,2611.0,0.38288]
[1724348474553,0.00964638,2611.1,2611.0,3.69288]
[1724348475059,0.00964638,2611.1,2611.0,8.47969]
[1724348476359,0.735,2611.4,2611.0,8.47969]
[1724348476360,0.735,2611.4,2611.3,0.38284]
[1724348476555,0.735,2611.4,2611.3,3.69284]
[1724348477465,0.73806914,2611.4,2611.3,3.69284]
[1724348479260,3.94586914,2611.4,2611.3,3.69284]
[1724348481869,3.21086914,2611.4,2611.3,3.69284]
[1724348482069,3.94546914,2611.4,2611.3,3.69284]
[1724348482569,0.73766914,2611.4,2611.3,3.69284]
[1724348486573,0.73766914,2611.4,2611.3,1.76184]
[1724348487465,3.94546914,2611.4,2611.3,0.38284]
[1724348487665,7.77506914,2611.4,2611.3,1.76184]
[1724348487969,8.15788914,2611.4,2611.3,1.379]
[1724348488167,7.77506914,2611.4,2611.3,1.379]
[1724348488367,7.77506914,2611.4,2611.3,1.76184]
[1724348488769,3.94546914,2611.4,2611.3,1.76184]
[1724348488971,0.73766914,2611.4,2611.3,1.76184]
[1724348490066,0.73766914,2611.4,2611.3,1.379]
[1724348490273,8.15788914,2611.4,2611.3,1.76184]
[1724348490465,8.15788914,2611.4,2610.7,28.95731]
[1724348490466,0.38284,2611.3,2611.2,0.38284]
[1724348490668,4.32829914,2611.4,2611.2,1.76184]
[1724348490970,0.38285,2611.2,2610.7,28.95731]
[1724348491173,3.94546914,2611.4,2610.7,28.0]
[1724348491174,3.2078,2611.1,2610.7,28.0]
[1724348491374,3.2078,2610.8,2610.7,0.38292]
[1724348491575,0.38287,2611.1,2610.7,0.38292]
[1724348491771,0.38287,2611.1,2611.0,1.379]
[1724348492074,3.2078,2611.2,2611.0,1.379]
[1724348492075,3.2078,2611.2,2611.0,1.76188]
[1724348492271,7.0374,2611.2,2611.1,1.76187]
[1724348492476,3.2078,2611.2,2611.1,0.38287]
[1724348492779,7.0374,2611.2,2611.1,0.38287]
[1724348494282,7.3843,2611.2,2611.1,0.38287]
[1724348495368,3.5547,2611.2,2611.1,0.38287]
[1724348497777,3.2078,2611.2,2611.1,0.38287]
[1724348497969,3.5562,2611.2,2611.1,0.38287]
[1724348498381,7.3858,2611.2,2611.1,0.38287]
[1724348498879,3.5562,2611.2,2611.1,0.38287]
[1724348499381,7.3858,2611.2,2611.1,0.38287]
[1724348501082,7.76866,2611.2,2611.1,0.38287]
[1724348501969,3.5562,2611.2,2611.1,0.38287]
[1724348503273,3.2078,2611.2,2611.1,0.38287]
[1724348505170,3.2078,2611.2,2611.1,1.34004]
[1724348505784,3.2078,2611.2,2611.1,0.38287]
[1724348508483,0.6987,2611.3,2611.2,0.38285]
[1724348509270,4.91114,2611.3,2611.2,0.38285]
[1724348509476,4.5283,2611.3,2611.2,0.38285]
[1724348509876,4.91114,2611.3,2611.2,0.38285]
[1724348511285,0.38285,2611.2,2611.1,0.38286]
[1724348511472,3.8296,2611.2,2611.1,0.38286]
[1724348511772,1.08155,2611.3,2611.2,0.38285]
[1724348512281,4.91115,2611.3,2611.2,0.38285]
[1724348513179,4.93022168,2611.3,2611.2,0.38285]
[1724348513883,4.93022087,2611.3,2611.2,0.38285]
[1724348514386,4.91115,2611.3,2611.2,0.38285]
[1724348514690,4.5283,2611.3,2611.2,0.38285]
[1724348515380,0.6987,2611.3,2611.2,0.38285]
[1724348515775,3.21086914,2611.4,2611.3,0.38284]
[1724348517382,0.00211104,2611.4,2611.3,5.16954]
[1724348518885,0.00211104,2611.4,2611.3,4.21244]
[1724348520087,0.00575164,2611.6,2611.5,0.38281]
[1724348520290,0.00575164,2611.6,2611.5,3.69281]
[1724348521182,0.01000568,2611.6,2611.5,3.69281]
[1724348521683,0.01000568,2611.6,2611.5,4.07661]
[1724348522079,0.01000568,2611.6,2611.5,3.69281]
[1724348522786,0.36870568,2611.6,2611.5,3.69281]
[1724348522991,0.75149568,2611.6,2611.3,3.69283]
[1724348523185,3.2078,2611.5,2611.4,0.38282]
[1724348525281,0.36870568,2611.6,2611.5,0.38281]
[1724348527691,4.19750568,2611.6,2611.4,0.38282]
[1724348527893,3.2078,2611.5,2611.4,0.38282]
[1724348528293,7.0374,2611.5,2611.4,0.38282]
[1724348529492,7.18496327,2611.5,2611.4,0.16914554]
[1724348529897,7.18496327,2611.5,2611.3,0.38283]
[1724348530192,0.49616327,2611.4,2611.3,0.38283]
[1724348531396,0.49616327,2611.4,2611.3,3.69283]
[1724348532096,0.3486,2611.4,2611.3,3.69283]
[1724348532300,0.1475252,2611.4,2611.3,3.69283]
[1724348532487,3.2078,2611.5,2611.4,0.38282]
[1724348532897,3.35531437,2611.5,2611.4,0.38282]
[1724348533904,3.35530546,2611.5,2611.4,0.38282]
[1724348534200,0.14750546,2611.5,2611.4,0.38282]
[1724348535395,0.14750546,2611.5,2611.4,7.35151206]
[1724348535597,0.01000568,2611.6,2611.5,1.33984]
[1724348535799,0.01000568,2611.6,2611.5,8.47864]
[1724348536190,0.01000568,2611.6,2611.5,9.91442524]
[1724348536503,0.01000568,2611.6,2611.5,9.43567]
[1724348538801,0.01000568,2611.6,2611.5,37.43567]
[1724348541705,0.01000568,2611.6,2611.5,8.47864]
[1724348542604,0.01000568,2611.6,2611.5,3.69281]
[1724348543412,3.21780568,2611.6,2611.5,3.69281]
[1724348543610,7.04660568,2611.6,2611.4,0.38281]
[1724348543803,1.0902,2611.5,2611.4,0.38281]
[1724348546112,1.0902,2611.5,2611.4,1.33987]
[1724348546313,1.0902,2611.5,2611.4,0.38281]
[1724348547499,0.7082,2611.5,2611.4,0.38281]
[1724348550408,1.0817,2611.5,2611.4,0.38281]
[1724348553409,1.0817,2611.5,2611.4,0.38282]
[1724348553410,4.9113,2611.5,2611.4,0.38282]
[1724348554113,4.9113,2611.5,2610.7,0.81341272]
[1724348554114,0.95714,2611.2,2610.7,0.81341272]
[1724348554303,0.95736,2610.6,2610.2,0.00575164]
[1724348554613,3.59078,2610.3,2610.2,0.00575164]
[1724348554914,7.42198,2610.3,2610.2,0.00575164]
[1724348555213,12.039,2610.3,2610.2,0.00936995]
[1724348555410,12.42198,2610.3,2610.2,0.00936995]
[1724348555819,12.039,2610.3,2610.2,0.00936995]
[1724348556211,12.42198,2610.3,2610.2,0.00936995]
[1724348558907,12.42198,2610.3,2609.4,0.3512]
[1724348558908,12.99647,2610.3,2609.4,0.3512]
[1724348559109,12.99647,2610.3,2609.4,0.73432]
[1724348559110,3.2078,2609.5,2609.4,0.73432]
[1724348560016,3.2078,2609.5,2609.4,0.73890658]
[1724348560017,3.21224041,2609.5,2609.4,0.73890658]
[1724348566615,0.00444041,2609.5,2609.4,4.57090658]
[1724348566817,0.00444041,2609.5,2609.4,9.57090658]
[1724348567517,0.00444041,2609.5,2609.4,4.57090658]
[1724348568318,0.00444041,2609.5,2609.4,4.21970658]
[1724348568520,3.21224041,2609.5,2609.4,0.00458658]
[1724348570119,3.21224041,2609.5,2609.4,0.38770658]
[1724348571025,3.21224041,2609.5,2609.4,0.00458658]
[1724348571227,3.21224041,2609.5,2609.4,0.38770658]
[1724348571617,3.21224041,2609.5,2609.4,0.00458658]
[1724348572322,3.21224041,2609.5,2609.4,0.38770658]
[1724348572627,3.21224041,2609.5,2609.4,28.38770658]
[1724348574125,3.21224041,2609.5,2609.4,0.38770658]
[1724348574420,3.21224041,2609.5,2609.4,10.17750658]
[1724348574421,0.00444041,2609.5,2609.4,10.17750658]
[1724348574729,0.00444041,2609.5,2609.4,32.21970658]
[1724348575123,3.21224041,2609.5,2609.4,0.38770658]
[1724348576021,3.21224041,2609.5,2609.4,0.00458658]
[1724348576326,3.21224041,2609.5,2609.4,0.38770658]
[1724348577127,3.21224041,2609.5,2609.4,4.21970658]
[1724348577518,3.21224041,2609.5,2609.4,0.38770658]
[1724348578021,3.21224041,2609.5,2609.4,4.21970658]
[1724348579529,3.21224041,2609.5,2609.4,0.38770658]
[1724348580027,3.21224041,2609.5,2609.4,0.00458658]
[1724348580526,7.04424041,2609.5,2609.4,0.00458658]
[1724348581429,7.42734041,2609.5,2609.4,0.00458658]
[1724348581737,7.04424041,2609.5,2609.4,0.00458658]
[1724348582425,7.42734041,2609.5,2609.4,0.00458658]
[1724348582624,0.38313,2609.3,2609.2,0.00575164]
[1724348582823,3.832,2609.4,2609.2,0.00575164]
[1724348583027,7.04424041,2609.5,2609.2,0.00575164]
[1724348583325,3.21224041,2609.5,2609.3,0.38312]
[1724348583524,3.21224041,2609.5,2609.4,0.38312]
[1724348583720,3.21224041,2609.5,2609.4,0.38592959]
[1724348583919,7.04424041,2609.5,2609.4,0.38592959]
[1724348584325,7.04424041,2609.5,2609.4,0.00280959]
[1724348584532,7.04424041,2609.5,2609.4,0.38592959]
[1724348586624,3.21224041,2609.5,2609.4,0.38592959]
[1724348590822,3.21224041,2609.5,2609.4,0.00280959]
[1724348591029,3.21224041,2609.5,2609.4,0.38592959]
[1724348595032,3.21224041,2609.5,2609.4,1.34372959]
[1724348595341,0.00444041,2609.5,2609.4,5.17572959]
[1724348595639,1e-08,2609.5,2609.4,11.13352959]
[1724348596628,1e-08,2609.5,2609.4,14.34132959]
[1724348598241,1e-08,2609.5,2609.4,13.38352959]
[1724348599034,1e-08,2609.5,2609.4,14.34132959]
[1724348599241,1e-08,2609.5,2609.4,14.82047137]
[1724348601047,1e-08,2609.5,2609.4,15.58707985]
[1724348601235,1e-08,2609.5,2609.4,14.82047137]
[1724348601736,1e-08,2609.5,2609.4,15.58706292]
[1724348601944,1e-08,2609.5,2609.4,15.58703323]
[1724348603248,1e-08,2609.5,2609.4,15.58702961]
[1724348603949,1e-08,2609.5,2609.4,14.82044498]
[1724348604941,1e-08,2609.5,2609.4,14.34132959]
[1724348605136,1e-08,2609.5,2609.4,14.82045689]
[1724348605435,1e-08,2609.5,2609.4,8.86265689]
[1724348606649,1e-08,2609.5,2609.4,8.38352959]
[1724348607637,1e-08,2609.5,2609.4,5.17572959]
[1724348609452,1e-08,2609.5,2609.4,5.65487843]
[1724348610151,1e-08,2609.5,2609.4,5.17572959]
[1724348610549,1e-08,2609.5,2609.4,5.65488569]
[1724348611046,1e-08,2609.5,2609.4,8.38352959]
[1724348611247,1e-08,2609.5,2609.4,8.86267409]
[1724348611854,1e-08,2609.5,2609.4,8.86267339]
[1724348612055,1e-08,2609.5,2609.4,13.86267339]
[1724348612646,1e-08,2609.5,2609.4,14.82047339]
[1724348613665,1e-08,2609.5,2609.4,9.82047339]
[1724348615452,1e-08,2609.5,2609.4,9.82046087]
[1724348615658,1e-08,2609.5,2609.4,9.34132959]
[1724348615843,1e-08,2609.5,2609.4,9.82046802]
[1724348616450,1e-08,2609.5,2609.4,11.20046802]
[1724348618857,1e-08,2609.5,2609.4,10.72132959]
[1724348619659,1e-08,2609.5,2609.4,7.51352959]
[1724348624262,1e-08,2609.5,2609.4,5.59792959]
[1724348624466,1e-08,2609.5,2609.4,1.76592959]
[1724348627772,1e-08,2609.5,2609.4,2.72372959]
[1724348628172,1e-08,2609.5,2609.4,7.51352959]
[1724348628365,1e-08,2609.5,2609.4,3.68152959]
[1724348628565,1e-08,2609.5,2609.4,7.51352959]
[1724348629769,1e-08,2609.5,2609.4,0.38592959]
[1724348629961,1e-08,2609.5,2609.4,1.76592959]
[1724348635566,1e-08,2609.5,2609.4,2.72372959]
[1724348636169,1e-08,2609.5,2609.4,1.76592959]
[1724348637377,1e-08,2609.5,2609.4,2.24511924]
[1724348638278,1e-08,2609.5,2609.4,3.20291924]
[1724348638778,1e-08,2609.5,2609.4,4.16071924]
[1724348639871,1e-08,2609.5,2609.4,4.92733745]
[1724348640072,1e-08,2609.5,2609.4,8.75933745]
[1724348640469,1e-08,2609.5,2609.4,13.84573981]
[1724348640974,1e-08,2609.5,2609.4,13.84566076]
[1724348645287,1e-08,2609.5,2609.4,11.65614189]
[1724348645481,1e-08,2609.5,2609.4,12.42274412]
[1724348645677,1e-08,2609.5,2609.4,11.94407051]
[1724348645872,1e-08,2609.5,2609.4,7.57045821]
[1724348646077,1e-08,2609.5,2609.4,9.48702947]
[1724348646376,1e-08,2609.5,2609.4,7.57045821]
[1724348647376,1e-08,2609.5,2609.4,8.52825821]
[1724348647670,1e-08,2609.5,2609.4,11.9441762]
[1724348648076,1e-08,2609.5,2609.4,10.44477775]
[1724348648281,1e-08,2609.5,2609.4,11.9441762]
[1724348648477,1e-08,2609.5,2609.4,10.44477775]
[1724348648692,1e-08,2609.5,2609.4,10.69844758]
[1724348648881,1e-08,2609.5,2609.4,10.44478762]
[1724348649076,1e-08,2609.5,2609.4,11.94418607]
[1724348649378,1e-08,2609.5,2609.4,12.90198607]
[1724348649578,1e-08,2609.5,2609.4,11.40258762]
[1724348650176,1e-08,2609.5,2609.4,13.84612676]
[1724348650677,1e-08,2609.5,2609.4,13.84611603]
[1724348651283,1e-08,2609.5,2609.4,18.84611603]
[1724348651487,1e-08,2609.5,2609.4,17.34671758]
[1724348652073,1e-08,2609.5,2609.4,15.15683721]
[1724348652278,1e-08,2609.5,2609.4,19.35451438]
[1724348652778,1e-08,2609.5,2609.4,23.18715429]
[1724348652973,1e-08,2609.5,2609.4,19.35451438]
[1724348653685,1e-08,2609.5,2609.4,18.8514593]
[1724348655382,1e-08,2609.5,2609.4,16.66166475]
[1724348655591,1e-08,2609.5,2609.4,18.85182197]
[1724348657891,1e-08,2609.5,2609.4,13.85182197]
[1724348658382,1e-08,2609.5,2609.4,18.85182197]
[1724348658585,1e-08,2609.5,2609.4,16.66168088]
[1724348658791,1e-08,2609.5,2609.4,18.85156328]
[1724348659179,1e-08,2609.5,2609.4,17.34673574]
[1724348659388,1e-08,2609.5,2609.4,18.85065698]
[1724348659889,1e-08,2609.5,2609.4,13.85065698]
[1724348660689,1e-08,2609.5,2609.4,13.8505864]
[1724348661890,1e-08,2609.5,2609.4,11.660704]
[1724348662393,1e-08,2609.5,2609.4,10.92336724]
[1724348662594,1e-08,2609.5,2609.4,13.85010552]
[1724348662895,1e-08,2609.5,2609.4,15.27329587]
[1724348663486,1e-08,2609.5,2609.4,13.1662811]
[1724348663685,1e-08,2609.5,2609.4,8.26686711]
[1724348663882,1e-08,2609.5,2609.4,6.35041394]
[1724348665310,1e-08,2609.5,2609.4,5.10471994]
[1724348665805,1e-08,2609.5,2609.4,6.35049596]
[1724348668109,1e-08,2609.5,2609.4,8.26702165]
[1724348668407,1e-08,2609.5,2609.4,9.77040925]
[1724348668606,1e-08,2609.5,2609.4,13.60240925]
[1724348668913,1e-08,2609.5,2609.4,13.04298263]
[1724348669206,1e-08,2609.5,2609.4,14.54640484]
[1724348669407,1e-08,2609.5,2609.4,14.54641041]
[1724348669899,1e-08,2609.5,2609.4,13.04298263]
[1724348670104,0.00575164,2609.7,2609.6,2.29853]
[1724348670309,0.00575164,2609.7,2609.6,10.04863171]
[1724348670499,0.00575164,2609.7,2609.6,13.88042628]
[1724348671010,0.00575164,2609.7,2609.6,15.38374008]
[1724348671305,0.00883668,2609.7,2609.6,11.96410602]
[1724348671502,6.68e-06,2609.7,2609.6,15.38376527]
[1724348672210,6.68e-06,2609.7,2609.6,43.38376527]
[1724348672799,6.68e-06,2609.7,2609.6,44.32760999]
[1724348673696,6.68e-06,2609.7,2609.6,43.38376527]
[1724348675406,6.68e-06,2609.7,2609.6,43.38368033]
[1724348675797,6.68e-06,2609.7,2609.6,41.88036653]
[1724348676106,6.68e-06,2609.7,2609.6,40.96594381]
[1724348676412,6.68e-06,2609.7,2609.6,6.21666602]
[1724348676712,6.68e-06,2609.7,2609.6,3.19995462]
[1724348676903,6.68e-06,2609.7,2609.6,3.96653585]
[1724348678509,6.68e-06,2609.7,2609.6,4.96837364]
[1724348678911,6.68e-06,2609.7,2609.6,4.96832087]
[1724348682315,6.68e-06,2609.7,2609.6,3.72264779]
[1724348682510,6.68e-06,2609.7,2609.6,4.96835643]
[1724348682913,6.68e-06,2609.7,2609.6,4.01063643]
[1724348683108,6.68e-06,2609.7,2609.6,2.24220871]
[1724348684904,5.21200668,2609.7,2609.5,1.38]
[1724348685100,8.7956,2609.6,2609.4,0.38591959]
[1724348685302,9.5086,2609.6,2609.5,0.3831]
[1724348685511,4.2966,2609.6,2609.5,0.3831]
[1724348685735,8.1286,2609.6,2609.5,0.3831]
[1724348687312,14.5086,2609.6,2609.5,0.3831]
[1724348689116,14.5086,2609.6,2609.4,0.00280959]
[1724348689320,5.5951,2609.5,2609.4,0.00280959]
[1724348689513,1.38,2609.3,2609.2,0.00575164]
[1724348689816,1.38,2609.3,2608.8,1.38]
[1724348689817,4.5878,2609.3,2609.0,0.38317]
[1724348690121,8.4206,2609.3,2609.0,0.38317]
[1724348690319,1.38,2609.1,2608.8,0.3832]
[1724348690615,1.38,2608.9,2608.8,0.0047874]
[1724348691113,10.2128,2608.9,2608.8,0.0047874]
[1724348691316,10.2128,2608.9,2608.6,0.38898164]
[1724348691615,4.5878,2608.7,2608.6,0.38898164]
[1724348691818,4.5878,2608.7,2608.6,0.00575164]
[1724348692013,13.4214,2608.7,2608.6,0.00575164]
[1724348692219,13.4214,2608.7,2608.6,0.00946573]
[1724348693618,13.4214,2608.7,2607.7,0.95839]
[1724348693619,12.0414,2608.7,2608.3,1.38]
[1724348693823,12.0414,2608.7,2608.3,0.38328]
[1724348693824,3.2078,2608.4,2608.3,0.38328]
[1724348694025,3.2078,2608.4,2608.3,1.76328]
[1724348694230,7.0414,2608.4,2608.3,1.76328]
[1724348694424,3.2078,2608.4,2608.3,1.76328]
[1724348694619,3.2078,2608.4,2608.3,1.76822524]
[1724348694823,3.5735,2608.4,2608.3,1.76822524]
[1724348696115,0.3657,2608.4,2608.3,1.76822524]
[1724348696733,0.7311,2608.4,2608.3,1.76822524]
[1724348697528,0.3654,2608.4,2608.3,1.76822524]
[1724348697920,0.3654,2608.4,2608.3,2.12092524]
[1724348698429,0.3654,2608.4,2608.3,3.07912524]
[1724348700919,0.3654,2608.4,2608.3,1.76822524]
[1724348703435,0.35465164,2608.6,2608.5,0.38325]
[1724348703733,0.35465164,2608.6,2608.5,1.76325]
[1724348703930,4.18825164,2608.6,2608.5,1.76325]
[1724348704938,4.18825164,2608.6,2608.5,0.38325]
[1724348706634,5.56825164,2608.6,2608.5,0.38325]
[1724348706832,10.56825164,2608.6,2608.5,0.38325]
[1724348708738,4.18825164,2608.6,2608.5,0.38325]
[1724348710344,0.00575164,2608.6,2608.5,1.76325]
[1724348711032,0.00575164,2608.6,2608.5,0.38325]
[1724348712440,3.83935164,2608.6,2608.5,0.38325]
[1724348714443,5.21935164,2608.6,2608.3,0.00494524]
[1724348714642,5.21935164,2608.6,2608.5,0.38325]
[1724348714944,1.38575164,2608.6,2608.5,0.38325]
[1724348715139,5.21935164,2608.6,2608.5,0.38325]
[1724348718435,5.21935164,2608.6,2608.4,0.38325]
[1724348718638,5.2136,2608.5,2608.4,0.38325]
[1724348719644,10.2136,2608.5,2608.4,0.38325]